fUST/lending_fUST_20250806
["ID","MTS","AMOUNT","RATE_DAILY","PERIOD"]
[377483174,1754425841459,-468.91,0.00027671,2]
[377483175,1754425841468,-460.0,0.00027671,2]
[377483176,1754425841477,-460.0,0.00027671,2]
[377483177,1754425841486,-460.0,0.00027671,2]
[377483178,1754425841495,-460.0,0.00027671,2]
[377483179,1754425841504,-460.0,0.00027671,2]
[377483180,1754425841516,-460.0,0.00027671,2]
[377483181,1754425841525,-460.0,0.00027671,2]
[377483182,1754425841534,-828.63,0.00027671,2]
[377483183,1754425841543,-460.0,0.00027671,2]
[377483184,1754425841552,-460.0,0.00027671,2]
[377483185,1754425841561,-460.0,0.00027671,2]
[377483186,1754425841570,-460.0,0.00027671,2]
[377483187,1754425841579,-577.08,0.00027671,2]
[377483188,1754425841588,-460.0,0.00027671,2]
[377483189,1754425841597,-460.0,0.00027671,2]
[377483190,1754425841607,-460.0,0.00027671,2]
[377483191,1754425841616,-460.0,0.00027671,2]
[377483192,1754425841626,-840.23,0.00027671,2]
[377483193,1754425841635,-641.07,0.00027671,2]
[377483194,1754425841644,-460.0,0.00027671,2]
[377483195,1754425841653,-460.0,0.00027671,2]
[377483196,1754425841662,-2971.49,0.00027671,2]
[377483197,1754425841671,-923.71,0.00027671,2]
[377483198,1754425841680,-460.0,0.00027671,2]
[377483199,1754425841690,-460.0,0.00027671,2]
[377483200,1754425841699,-460.0,0.00027671,2]
[377483201,1754425841709,-460.0,0.00027671,2]
[377483202,1754425841718,-460.0,0.00027671,2]
[377483203,1754425841727,-460.0,0.00027671,2]
[377483204,1754425841736,-2220.96,0.00027671,2]
[377483205,1754425841745,-608.88760682,0.00027671,2]
[377483206,1754425841755,-460.0,0.00027671,2]
[377483207,1754425841764,-460.0,0.00027671,2]
[377483208,1754425841773,-460.0,0.00027671,2]
[377483209,1754425841782,-460.0,0.00027671,2]
[377483210,1754425841791,-460.0,0.00027671,2]
[377483211,1754425841801,-460.0,0.00027671,2]
[377483212,1754425841810,-558.16,0.00027671,2]
[377483213,1754425841819,-477.6,0.00027671,2]
[377483214,1754425841828,-460.0,0.00027671,2]
[377483215,1754425841837,-460.0,0.00027671,2]
[377483216,1754425841847,-460.0,0.00027671,2]
[377483217,1754425841855,-460.0,0.00027671,2]
[377483218,1754425841864,-460.0,0.00027671,2]
[377483219,1754425841874,-460.0,0.00027671,2]
[377483220,1754425841883,-460.0,0.00027671,2]
[377483221,1754425841892,-460.0,0.00027671,2]
[377483222,1754425841901,-692.63,0.00027671,2]
[377483223,1754425841910,-468.22517412,0.00027671,2]
[377483224,1754425841919,-460.0,0.00027671,2]
[377483225,1754425841928,-460.0,0.00027671,2]
[377483226,1754425841938,-460.0,0.00027671,2]
[377483227,1754425841947,-460.0,0.00027671,2]
[377483228,1754425841956,-460.0,0.00027671,2]
[377483229,1754425841966,-460.0,0.00027671,2]
[377483230,1754425841975,-460.0,0.00027671,2]
[377483231,1754425841984,-460.0,0.00027671,2]
[377483232,1754425841994,-460.0,0.00027671,2]
[377483233,1754425842003,-460.0,0.00027671,2]
[377483234,1754425842012,-460.0,0.00027671,2]
[377483235,1754425842021,-460.0,0.00027671,2]
[377483236,1754425842030,-460.0,0.00027671,2]
[377483237,1754425842039,-460.0,0.00027671,2]
[377483238,1754425842049,-460.0,0.00027671,2]
[377483239,1754425842059,-460.0,0.00027671,2]
[377483240,1754425842068,-460.0,0.00027671,2]
[377483241,1754425842077,-460.0,0.00027671,2]
[377483242,1754425842086,-460.0,0.00027671,2]
[377483243,1754425842095,-460.0,0.00027671,2]
[377483244,1754425842104,-460.0,0.00027671,2]
[377483245,1754425842113,-460.0,0.00027671,2]
[377483246,1754425842122,-460.0,0.00027671,2]
[377483247,1754425842132,-460.0,0.00027671,2]
[377483248,1754425842141,-475.00294509,0.00027671,2]
[377483249,1754425842153,-460.0,0.00027671,2]
[377483250,1754425842162,-929.97,0.00027671,2]
[377483251,1754425842171,-677.37,0.00027671,2]
[377483252,1754425842181,-460.0,0.00027671,2]
[377483253,1754425842190,-1117.28,0.00027671,2]
[377483254,1754425842200,-460.0,0.00027671,2]
[377483255,1754425842209,-460.0,0.00027671,2]
[377483256,1754425842218,-460.0,0.00027671,2]
[377483257,1754425842228,-460.0,0.00027671,2]
[377483258,1754425842238,-460.0,0.00027671,2]
[377483259,1754425842248,-460.0,0.00027671,2]
[377483260,1754425842257,-31796.96,0.00027671,2]
[377483261,1754425842267,-460.0,0.00027671,2]
[377483262,1754425842277,-649.65,0.00027671,2]
[377483263,1754425842287,-460.0,0.00027671,2]
[377483264,1754425842296,-460.0,0.00027671,2]
[377483265,1754425842305,-2633.74,0.00027671,2]
[377483266,1754425842315,-460.0,0.00027671,2]
[377483267,1754425842326,-460.0,0.00027671,2]
[377483268,1754425842335,-460.0,0.00027671,2]
[377483269,1754425842344,-460.0,0.00027671,2]
[377483270,1754425842354,-460.0,0.00027671,2]
[377483271,1754425842363,-632.12,0.00027671,2]
[377483272,1754425842373,-460.0,0.00027671,2]
[377483273,1754425842382,-460.0,0.00027671,2]
[377483274,1754425842391,-8268.32527179,0.00027674,2]
[377483275,1754425842400,-2434.74389024,0.00027709,2]
[377483276,1754425842410,-2524.82941417,0.00027764,2]
[377483277,1754425842419,-2200.60699428,0.00027797,2]
[377483278,1754425842429,-1353.66265113,0.00027819,2]
[377483279,1754425842438,-22004.7561495,0.00027935,2]
[377483280,1754425842448,-4158.52106272,0.00027935,2]
[377483281,1754425842457,-460.0,0.00027945,2]
[377483282,1754425842466,-460.0,0.00027945,2]
[377483283,1754425842476,-460.0,0.00027945,2]
[377483284,1754425842486,-460.0,0.00027945,2]
[377483285,1754425842495,-460.0,0.00027945,2]
[377483286,1754425842504,-460.0,0.00027945,2]
[377483287,1754425842513,-460.0,0.00027945,2]
[377483288,1754425842523,-187.8,0.00027945,2]
[377483289,1754425842534,-460.0,0.00027945,2]
[377483290,1754425842544,-460.0,0.00027945,2]
[377483291,1754425842553,-460.0,0.00027945,2]
[377483292,1754425842563,-518.21,0.00027945,2]
[377483293,1754425842572,-460.0,0.00027945,2]
[377483294,1754425842581,-460.0,0.00027945,2]
[377483295,1754425842591,-460.0,0.00027945,2]
[377483296,1754425842600,-460.0,0.00027945,2]
[377483297,1754425842609,-311.49,0.00027945,2]
[377483298,1754425842726,-828.63,0.00027945,2]
[377483299,1754425842736,-460.0,0.00027945,2]
[377483300,1754425842746,-482.3,0.00027945,2]
[377483301,1754425842756,-460.0,0.00027945,2]
[377483302,1754425842766,-460.0,0.00027945,2]
[377483303,1754425842775,-460.0,0.00027945,2]
[377483304,1754425842784,-840.23,0.00027945,2]
[377483305,1754425842794,-641.07,0.00027945,2]
[377483306,1754425842803,-2971.49,0.00027945,2]
[377483307,1754425842812,-923.71,0.00027945,2]
[377483308,1754425842822,-460.0,0.00027945,2]
[377483309,1754425842831,-460.0,0.00027945,2]
[377483310,1754425842841,-460.0,0.00027945,2]
[377483311,1754425842850,-460.0,0.00027945,2]
[377483312,1754425842859,-2220.96,0.00027945,2]
[377483315,1754425842869,-460.0,0.00027945,2]
[377483317,1754425842879,-460.0,0.00027945,2]
[377483318,1754425842888,-460.0,0.00027945,2]
[377483319,1754425842897,-460.0,0.00027945,2]
[377483320,1754425842907,-460.0,0.00027945,2]
[377483321,1754425842916,-692.63,0.00027945,2]
[377483322,1754425842926,-460.0,0.00027945,2]
[377483323,1754425842935,-460.0,0.00027945,2]
[377483324,1754425842945,-460.0,0.00027945,2]
[377483325,1754425842955,-460.0,0.00027945,2]
[377483326,1754425842964,-460.0,0.00027945,2]
[377483327,1754425842974,-460.0,0.00027945,2]
[377483330,1754425842983,-460.0,0.00027945,2]
[377483332,1754425842992,-460.0,0.00027945,2]
[377483334,1754425843001,-460.0,0.00027945,2]
[377483335,1754425843010,-460.0,0.00027945,2]
[377483336,1754425843019,-460.0,0.00027945,2]
[377483337,1754425843028,-460.0,0.00027945,2]
[377483338,1754425843038,-460.0,0.00027945,2]
[377483339,1754425843047,-460.0,0.00027945,2]
[377483340,1754425843056,-460.0,0.00027945,2]
[377483341,1754425843066,-929.97,0.00027945,2]
[377483342,1754425843074,-677.37,0.00027945,2]
[377483343,1754425843084,-1117.28,0.00027945,2]
[377483344,1754425843093,-460.0,0.00027945,2]
[377483345,1754425843102,-181.7588461,0.00027945,2]
[377483346,1754425843120,-278.2411539,0.00027945,2]
[377483347,1754425843129,-234.64,0.00027945,2]
[377483348,1754425843139,-460.0,0.00027945,2]
[377483349,1754425843148,-460.0,0.00027945,2]
[377483350,1754425843161,-460.0,0.00027945,2]
[377483351,1754425843171,-31796.96,0.00027945,2]
[377483352,1754425843180,-460.0,0.00027945,2]
[377483353,1754425843190,-649.65,0.00027945,2]
[377483354,1754425843200,-347.23596729,0.00027945,2]
[377483355,1754425843210,-460.0,0.00027945,2]
[377483356,1754425843220,-2633.74,0.00027945,2]
[377483357,1754425843229,-219.74,0.00027945,2]
[377483358,1754425843239,-632.12,0.00027945,2]
[377483359,1754425843248,-460.0,0.00027945,2]
[377483360,1754425843257,-150.0,0.00027973,3]
[377483361,1754425843266,-216.4206905,0.00028,3]
[377483362,1754425843275,-216.4206905,0.00028,3]
[377483363,1754425843285,-552.31596102,0.00028,2]
[377483364,1754425843294,-312.16666667,0.00028,3]
[377483365,1754425843303,-160.0,0.00028,3]
[377483366,1754425843312,-389.571251,0.00028043,2]
[377483367,1754425843322,-200.0,0.00028105,15]
[377483368,1754425843331,-300.0,0.00028105,15]
[377483369,1754425843340,-2277.36052417,0.00028105,2]
[377483370,1754425843349,-11002.3780748,0.00028209,2]
[377483371,1754425843359,-2079.26053136,0.00028209,2]
[377483372,1754425843368,-160.0,0.00028211,2]
[377483374,1754425843377,-460.0,0.00028219,2]
[377483377,1754425843386,-460.0,0.00028219,2]
[377483379,1754425843395,-460.0,0.00028219,2]
[377483381,1754425843405,-460.0,0.00028219,2]
[377483383,1754425843414,-359.41,0.00028219,2]
[377483386,1754425843423,-460.0,0.00028219,2]
[377483388,1754425843432,-460.0,0.00028219,2]
[377483390,1754425843442,-460.0,0.00028219,2]
[377483392,1754425843452,-460.0,0.00028219,2]
[377483394,1754425843461,-460.0,0.00028219,2]
[377483396,1754425843470,-518.21,0.00028219,2]
[377483398,1754425843479,-460.0,0.00028219,2]
[377483400,1754425843488,-460.0,0.00028219,2]
[377483402,1754425843497,-460.0,0.00028219,2]
[377483404,1754425843507,-460.0,0.00028219,2]
[377483405,1754425843517,-828.63,0.00028219,2]
[377483406,1754425843527,-460.0,0.00028219,2]
[377483407,1754425843536,-460.0,0.00028219,2]
[377483408,1754425843546,-460.0,0.00028219,2]
[377483409,1754425843555,-460.0,0.00028219,2]
[377483410,1754425843565,-840.23,0.00028219,2]
[377483411,1754425843575,-641.07,0.00028219,2]
[377483412,1754425843585,-2971.49,0.00028219,2]
[377483413,1754425843594,-923.71,0.00028219,2]
[377483414,1754425843604,-460.0,0.00028219,2]
[377483415,1754425843613,-460.0,0.00028219,2]
[377483416,1754425843623,-460.0,0.00028219,2]
[377483417,1754425843632,-460.0,0.00028219,2]
[377483418,1754425843642,-2220.96,0.00028219,2]
[377483420,1754425843651,-460.0,0.00028219,2]
[377483422,1754425843660,-460.0,0.00028219,2]
[377483424,1754425843670,-460.0,0.00028219,2]
[377483425,1754425843679,-460.0,0.00028219,2]
[377483427,1754425843688,-460.0,0.00028219,2]
[377483428,1754425843697,-692.63,0.00028219,2]
[377483430,1754425843706,-460.0,0.00028219,2]
[377483431,1754425843716,-460.0,0.00028219,2]
[377483432,1754425843725,-460.0,0.00028219,2]
[377483433,1754425843735,-460.0,0.00028219,2]
[377483434,1754425843744,-460.0,0.00028219,2]
[377483435,1754425843753,-460.0,0.00028219,2]
[377483437,1754425843763,-460.0,0.00028219,2]
[377483439,1754425843773,-460.0,0.00028219,2]
[377483441,1754425843782,-460.0,0.00028219,2]
[377483442,1754425843791,-342.8,0.00028219,2]
[377483443,1754425843801,-460.0,0.00028219,2]
[377483444,1754425843810,-460.0,0.00028219,2]
[377483447,1754425843819,-460.0,0.00028219,2]
[377483448,1754425843828,-929.97,0.00028219,2]
[377483450,1754425843837,-677.37,0.00028219,2]
[377483451,1754425843847,-1117.28,0.00028219,2]
[377483452,1754425843856,-460.0,0.00028219,2]
[377483453,1754425843866,-460.0,0.00028219,2]
[377483454,1754425843875,-460.0,0.00028219,2]
[377483455,1754425843885,-460.0,0.00028219,2]
[377483456,1754425843893,-460.0,0.00028219,2]
[377483458,1754425843903,-31796.96,0.00028219,2]
[377483460,1754425843913,-460.0,0.00028219,2]
[377483461,1754425843922,-649.65,0.00028219,2]
[377483462,1754425843931,-2633.74,0.00028219,2]
[377483463,1754425843942,-632.12,0.00028219,2]
[377483464,1754425843952,-460.0,0.00028219,2]
[377483465,1754425843961,-2079.26053136,0.00028483,2]
[377483466,1754425843971,-460.0,0.00028493,2]
[377483467,1754425843980,-460.0,0.00028493,2]
[377483468,1754425843990,-460.0,0.00028493,2]
[377483469,1754425844000,-460.0,0.00028493,2]
[377483470,1754425844009,-285.42914648,0.00028493,2]
[377483471,1754425844019,-460.0,0.00028493,2]
[377483472,1754425844028,-504.24042899,0.00028493,2]
[377483473,1754425844039,-460.0,0.00028493,2]
[377483474,1754425844052,-460.0,0.00028493,2]
[377483475,1754425844062,-518.21,0.00028493,2]
[377483476,1754425844071,-460.0,0.00028493,2]
[377483477,1754425844082,-467.64707366,0.00028493,2]
[377483478,1754425844091,-460.0,0.00028493,2]
[377483479,1754425844100,-460.0,0.00028493,2]
[377483480,1754425844110,-828.63,0.00028493,2]
[377483481,1754425844119,-460.0,0.00028493,2]
[377483482,1754425844129,-460.0,0.00028493,2]
[377483483,1754425844138,-460.0,0.00028493,2]
[377483484,1754425844147,-460.0,0.00028493,2]
[377483485,1754425844157,-840.23,0.00028493,2]
[377483486,1754425844166,-641.07,0.00028493,2]
[377483487,1754425844178,-923.71,0.00028493,2]
[377483488,1754425844188,-2971.49,0.00028493,2]
[377483489,1754425844197,-460.0,0.00028493,2]
[377483490,1754425844207,-460.0,0.00028493,2]
[377483491,1754425844217,-2220.96,0.00028493,2]
[377483492,1754425844226,-460.0,0.00028493,2]
[377483493,1754425844236,-460.0,0.00028493,2]
[377483494,1754425844245,-460.0,0.00028493,2]
[377483495,1754425844255,-460.0,0.00028493,2]
[377483496,1754425844265,-460.0,0.00028493,2]
[377483497,1754425844274,-692.63,0.00028493,2]
[377483498,1754425844284,-460.0,0.00028493,2]
[377483499,1754425844294,-460.0,0.00028493,2]
[377483500,1754425844304,-460.0,0.00028493,2]
[377483501,1754425844313,-428.74,0.00028493,2]
[377483502,1754425844323,-460.0,0.00028493,2]
[377483504,1754425844332,-460.0,0.00028493,2]
[377483506,1754425844341,-460.0,0.00028493,2]
[377483507,1754425844350,-460.0,0.00028493,2]
[377483508,1754425844359,-460.0,0.00028493,2]
[377483509,1754425844368,-460.0,0.00028493,2]
[377483510,1754425844378,-460.0,0.00028493,2]
[377483511,1754425844388,-929.97,0.00028493,2]
[377483512,1754425844397,-677.37,0.00028493,2]
[377483513,1754425844407,-1117.28,0.00028493,2]
[377483514,1754425844417,-460.0,0.00028493,2]
[377483515,1754425844427,-460.0,0.00028493,2]
[377483516,1754425844438,-153.440057,0.00028493,7]
[377483517,1754425844447,-460.0,0.00028493,2]
[377483518,1754425844457,-460.0,0.00028493,2]
[377483519,1754425844466,-460.0,0.00028493,2]
[377483520,1754425844476,-31796.96,0.00028493,2]
[377483521,1754425844487,-460.0,0.00028493,2]
[377483522,1754425844496,-649.65,0.00028493,2]
[377483523,1754425844506,-2633.74,0.00028493,2]
[377483524,1754425844516,-632.12,0.00028493,2]
[377483525,1754425844525,-460.0,0.00028493,2]
[377483526,1754425844535,-152.01,0.00028532,15]
[377483527,1754425844544,-152.0,0.00028542,15]
[377483528,1754425844553,-152.01,0.00028632,15]
[377483529,1754425844563,-152.0,0.00028642,15]
[377483530,1754425844572,-150.0,0.00028644,2]
[377483531,1754425844583,-152.01,0.00028732,15]
[377483532,1754425844593,-152.0,0.00028742,15]
[377483533,1754425844603,-260.0,0.00028758,2]
[377483534,1754425844613,-460.0,0.00028767,2]
[377483535,1754425844622,-460.0,0.00028767,2]
[377483536,1754425844632,-460.0,0.00028767,2]
[377483537,1754425844642,-460.0,0.00028767,2]
[377483538,1754425844651,-386.0,0.00028767,2]
[377483539,1754425844660,-460.0,0.00028767,2]
[377483540,1754425844670,-460.0,0.00028767,2]
[377483541,1754425844679,-518.21,0.00028767,2]
[377483542,1754425844688,-460.0,0.00028767,2]
[377483543,1754425844697,-460.0,0.00028767,2]
[377483544,1754425844707,-460.0,0.00028767,2]
[377483545,1754425844717,-828.63,0.00028767,2]
[377483546,1754425844726,-534.12,0.00028767,2]
[377483547,1754425844735,-460.0,0.00028767,2]
[377483548,1754425844744,-460.0,0.00028767,2]
[377483549,1754425844753,-460.0,0.00028767,2]
[377483550,1754425844763,-840.23,0.00028767,2]
[377483551,1754425844772,-641.07,0.00028767,2]
[377483552,1754425844781,-923.71,0.00028767,2]
[377483553,1754425844792,-2971.49,0.00028767,2]
[377483554,1754425844801,-460.0,0.00028767,2]
[377483555,1754425844810,-460.0,0.00028767,2]
[377483556,1754425844819,-2220.96,0.00028767,2]
[377483557,1754425844829,-460.0,0.00028767,2]
[377483558,1754425844838,-460.0,0.00028767,2]
[377483559,1754425844847,-460.0,0.00028767,2]
[377483560,1754425844857,-460.0,0.00028767,2]
[377483561,1754425844866,-242.04,0.00028767,2]
[377483562,1754425844875,-692.63,0.00028767,2]
[377483563,1754425844884,-460.0,0.00028767,2]
[377483564,1754425844894,-460.0,0.00028767,2]
[377483565,1754425844903,-460.0,0.00028767,2]
[377483566,1754425844912,-540.34,0.00028767,2]
[377483567,1754425844922,-460.0,0.00028767,2]
[377483568,1754425844931,-460.0,0.00028767,2]
[377483569,1754425844940,-460.0,0.00028767,2]
[377483570,1754425844950,-545.12,0.00028767,2]
[377483571,1754425844960,-460.0,0.00028767,2]
[377483572,1754425844970,-460.0,0.00028767,2]
[377483573,1754425844980,-929.97,0.00028767,2]
[377483574,1754425844990,-1117.28,0.00028767,2]
[377483575,1754425844999,-460.0,0.00028767,2]
[377483576,1754425845009,-677.37,0.00028767,2]
[377483577,1754425845019,-460.0,0.00028767,2]
[377483578,1754425845029,-460.0,0.00028767,2]
[377483579,1754425845039,-460.0,0.00028767,2]
[377483580,1754425845051,-460.0,0.00028767,2]
[377483581,1754425845062,-31796.96,0.00028767,2]
[377483582,1754425845072,-460.0,0.00028767,2]
[377483583,1754425845081,-649.65,0.00028767,2]
[377483584,1754425845090,-2633.74,0.00028767,2]
[377483585,1754425845100,-632.12,0.00028767,2]
[377483586,1754425845109,-460.0,0.00028767,2]
[377483587,1754425845118,-152.01,0.00028832,15]
[377483588,1754425845127,-152.0,0.00028842,15]
[377483589,1754425845136,-231.72586818,0.00028875,2]
[377483590,1754425845145,-151.0,0.00028913,2]
[377483591,1754425845155,-2200.60699428,0.00028919,2]
[377483592,1754425845164,-152.01,0.00028932,15]
[377483593,1754425845174,-152.0,0.00028942,15]
[377483594,1754425845186,-587.0,0.00028949,2]
[377483595,1754425845195,-156.795135,0.0002898,2]
[377483596,1754425845205,-160.0,0.00028995,2]
[377483597,1754425845215,-216.4206905,0.00028995,2]
[377483598,1754425845224,-12655.02535889,0.00028995,2]
[377483599,1754425845235,-160.0,0.00028995,2]
[377483600,1754425845244,-461.15695721,0.00028995,2]
[377483601,1754425845255,-160.0,0.00028995,2]
[377483602,1754425845264,-160.0,0.00028995,2]
[377483603,1754425845274,-842.25606042,0.00028995,2]
[377483604,1754425845284,-160.0,0.00028995,2]
[377483605,1754425845293,-160.0,0.00028997,2]
[377483606,1754425845302,-160.0,0.00028997,2]
[377483607,1754425845311,-160.0,0.00028997,2]
[377483608,1754425845321,-216.4206905,0.00029,10]
[377483609,1754425845330,-160.0,0.00029022,2]
[377483610,1754425845339,-152.01,0.00029032,15]
[377483611,1754425845348,-460.0,0.00029041,2]
[377483612,1754425845358,-460.0,0.00029041,2]
[377483613,1754425845367,-460.0,0.00029041,2]
[377483614,1754425845377,-460.0,0.00029041,2]
[377483615,1754425845387,-460.0,0.00029041,2]
[377483616,1754425845396,-518.21,0.00029041,2]
[377483617,1754425845405,-460.0,0.00029041,2]
[377483618,1754425845415,-460.0,0.00029041,2]
[377483619,1754425845530,-460.0,0.00029041,2]
[377483620,1754425845540,-828.63,0.00029041,2]
[377483621,1754425845550,-460.0,0.00029041,2]
[377483622,1754425845559,-460.0,0.00029041,2]
[377483623,1754425845569,-840.23,0.00029041,2]
[377483624,1754425845578,-460.0,0.00029041,2]
[377483625,1754425845587,-641.07,0.00029041,2]
[377483626,1754425845597,-923.71,0.00029041,2]
[377483627,1754425845607,-2971.49,0.00029041,2]
[377483628,1754425845617,-207.9,0.00029041,2]
[377483629,1754425845626,-460.0,0.00029041,2]
[377483630,1754425845636,-2220.96,0.00029041,2]
[377483631,1754425845645,-460.0,0.00029041,2]
[377483632,1754425845654,-460.0,0.00029041,2]
[377483633,1754425845663,-460.0,0.00029041,2]
[377483634,1754425845673,-272.01,0.00029041,2]
[377483635,1754425845683,-692.63,0.00029041,2]
[377483636,1754425845693,-421.55,0.00029041,2]
[377483637,1754425845702,-460.0,0.00029041,2]
[377483638,1754425845712,-388.79936622,0.00029041,2]
[377483639,1754425845721,-460.0,0.00029041,2]
[377483640,1754425845731,-460.0,0.00029041,2]
[377483641,1754425845740,-460.0,0.00029041,2]
[377483642,1754425845750,-460.0,0.00029041,2]
[377483643,1754425845759,-460.0,0.00029041,2]
[377483644,1754425845768,-929.97,0.00029041,2]
[377483645,1754425845778,-460.0,0.00029041,2]
[377483646,1754425845789,-1117.28,0.00029041,2]
[377483647,1754425845801,-677.37,0.00029041,2]
[377483648,1754425845810,-460.0,0.00029041,2]
[377483649,1754425845820,-460.0,0.00029041,2]
[377483650,1754425845831,-460.0,0.00029041,2]
[377483651,1754425845842,-460.0,0.00029041,2]
[377483652,1754425845853,-460.0,0.00029041,2]
[377483653,1754425845862,-31796.96,0.00029041,2]
[377483654,1754425845873,-649.65,0.00029041,2]
[377483656,1754425845883,-2633.74,0.00029041,2]
[377483658,1754425845892,-632.12,0.00029041,2]
[377483659,1754425845902,-460.0,0.00029041,2]
[377483660,1754425845914,-152.0,0.00029042,15]
[377483661,1754425845924,-152.01,0.00029132,15]
[377483662,1754425845935,-152.0,0.00029142,15]
[377483663,1754425845948,-183.29688319,0.00029193,2]
[377483664,1754425845958,-152.08777179,0.00029232,15]
[377483665,1754425845968,-152.0,0.00029242,15]
[377483666,1754425845979,-360.0,0.00029306,2]
[377483667,1754425845991,-460.0,0.00029315,2]
[377483668,1754425846001,-583.88044247,0.00029315,2]
[377483669,1754425846012,-460.0,0.00029315,2]
[377483670,1754425846022,-460.0,0.00029315,2]
[377483671,1754425846032,-460.0,0.00029315,2]
[377483672,1754425846042,-518.21,0.00029315,2]
[377483673,1754425846052,-183.62,0.00029315,2]
[377483674,1754425846062,-460.0,0.00029315,2]
[377483675,1754425846073,-460.0,0.00029315,2]
[377483676,1754425846083,-828.63,0.00029315,2]
[377483677,1754425846093,-460.0,0.00029315,2]
[377483678,1754425846103,-460.0,0.00029315,2]
[377483679,1754425846113,-840.23,0.00029315,2]
[377483680,1754425846122,-460.0,0.00029315,2]
[377483682,1754425846131,-641.07,0.00029315,2]
[377483683,1754425846141,-923.71,0.00029315,2]
[377483684,1754425846150,-2971.49,0.00029315,2]
[377483685,1754425846159,-460.0,0.00029315,2]
[377483686,1754425846170,-2220.96,0.00029315,2]
[377483687,1754425846181,-460.0,0.00029315,2]
[377483688,1754425846191,-460.0,0.00029315,2]
[377483689,1754425846201,-182.89,0.00029315,2]
[377483690,1754425846210,-692.63,0.00029315,2]
[377483691,1754425846220,-460.0,0.00029315,2]
[377483692,1754425846230,-460.0,0.00029315,2]
[377483693,1754425846239,-460.0,0.00029315,2]
[377483694,1754425846248,-460.0,0.00029315,2]
[377483695,1754425846257,-460.0,0.00029315,2]
[377483696,1754425846268,-460.0,0.00029315,2]
[377483697,1754425846278,-929.97,0.00029315,2]
[377483698,1754425846287,-460.0,0.00029315,2]
[377483699,1754425846296,-1117.28,0.00029315,2]
[377483700,1754425846305,-677.37,0.00029315,2]
[377483701,1754425846315,-460.0,0.00029315,2]
[377483702,1754425846324,-460.0,0.00029315,2]
[377483703,1754425846333,-460.0,0.00029315,2]
[377483704,1754425846342,-460.0,0.00029315,2]
[377483705,1754425846352,-460.0,0.00029315,2]
[377483706,1754425846361,-31796.96,0.00029315,2]
[377483707,1754425846370,-649.65,0.00029315,2]
[377483709,1754425846379,-2633.74,0.00029315,2]
[377483711,1754425846389,-632.12,0.00029315,2]
[377483713,1754425846399,-460.0,0.00029315,2]
[377483715,1754425846408,-152.0,0.00029342,15]
[377483717,1754425846418,-152.0,0.00029442,15]
[377483719,1754425846428,-152.0,0.00029542,15]
[377483721,1754425846438,-460.0,0.00029589,2]
[377483723,1754425846450,-460.0,0.00029589,2]